Cogmind - Beta 17.1 @@@ ROGUE MODE // 2026.08.29 @ 16:55:07 Player: UnderDoug Result: Destroyed by S-10 Pest with Light Assault Rifle Performance ------------- Evolutions (2) 1000 Regions Visited (4) 800 Robots Destroyed (8) 40 Value Destroyed (187) 187 Prototype IDs (0) 0 Alien Tech Used (0) 0 Bonus (33) 33 TOTAL SCORE: 2060 Bonus ------- Follower Combat Kills 33 Cogmind --------- Core Integrity 0/550 Matter 300/300 Energy 99/100 System Corruption 0% Temperature Cool (9) Movement Core (50) Location -8/Materials Parts ------- > --- POWER (2) -------- (None) > --- PROPULSION (4) --- (None) > --- UTILITY (3) ------ (None) > --- WEAPON (2) ------- (None) > --- INVENTORY (5) ---- Light Ion Engine Faulty Experimental Sensor Array Mining Laser Peak State ------------ > --- POWER ------------ Light Ion Engine Light Ion Engine > --- PROPULSION ------- Flight Unit Flight Unit Flight Unit Flight Unit > --- UTILITY ---------- Weight Redist. System Advanced Visual Processing Unit > --- WEAPON ----------- Light Assault Rifle Light Assault Rifle > --- INVENTORY -------- Light Ion Engine Flight Unit Experimental Sensor Array Mining Laser [Rating: 14] Favorites ----------- Power Light Ion Engine Engine Light Ion Engine Propulsion Flight Unit Treads Light Treads Hover Unit Hover Unit Flight Unit Flight Unit Utility Visual Processing Unit Device Weight Redist. System Storage Small Storage Unit Processor Visual Processing Unit Weapon Light Assault Rifle Energy Gun EM Pulse Gun Ballistic Gun Light Assault Rifle Launcher Grenade Launcher Build | -11 -10 -9 -9 -8 ------- Run | Yrd Mat Mat Min Mat Slots Evolved 4 | . . 2 . 2 Power 1 | . . 1 . . Propulsion 2 | . . 1 . 1 Utility 1 | . . . . 1 Weapon . | . . . . . Parts Attached 24 | 6 8 3 5 2 Power 5 | 1 . 2 2 . Engine 5 | 1 . 2 2 . Core . | . . . . . Reactor . | . . . . . Propulsion 9 | 2 4 1 1 1 Treads 2 | 2 . . . . Leg . | . . . . . Wheel . | . . . . . Hover 2 | . 2 . . . Flight 5 | . 2 1 1 1 Utility 6 | 1 3 . 1 1 Device 2 | . 1 . 1 . Storage 2 | 1 1 . . . Processor 2 | . 1 . . 1 Hackware . | . . . . . Protection . | . . . . . Artifact . | . . . . . Weapon 4 | 2 1 . 1 . Energy Gun 1 | 1 . . . . Energy Cannon . | . . . . . Ballistic Gun 2 | 1 . . 1 . Ballistic Cannon . | . . . . . Launcher 1 | . 1 . . . Special Weapon . | . . . . . Impact Weapon . | . . . . . Slashing Weapon . | . . . . . Piercing Weapon . | . . . . . Special Melee Weapon . | . . . . . Unidentified Prototypes . | . . . . . Parts Lost 9 | . . . . 9 Power 2 | . . . . 2 Propulsion 5 | . . . . 5 Utility 1 | . . . . 1 Weapon 1 | . . . . 1 Highest Loss Streak 9 | . . . . 9 To Critical Strikes . | . . . . . Average Backups 4 | 4 7 2 4 3 Power 1 | 1 1 1 1 1 Propulsion 2 | 2 4 1 1 . Utility . | . . . 1 1 Weapon . | . 1 . . 1 Tool/Special . | . . . . . Unused Backups 10 | . 8 . . 2 Power 1 | . 1 . . . Propulsion 6 | . 6 . . . Utility 1 | . . . . 1 Weapon 2 | . 1 . . 1 Tool/Special . | . . . . . Average Slot Usage (%) 81 | . 83 82 95 60 Engine 16 | . 14 20 22 11 Treads 6 | . 22 . . . Hover 1 | . 4 . . . Flight 21 | . 1 33 33 23 Device 7 | . 2 11 11 6 Storage 3 | . 11 . . . Processor 7 | . 2 11 11 7 Energy Gun 1 | . 4 . . . Ballistic Gun 14 | . 14 6 17 13 Launcher 1 | . 6 . . . Peak Build Rating 14 | 6 7 9 12 14 Average Rating 8 | 4 6 8 10 9 On Entrance 6 | . 6 7 9 12 Avg Prop Armor Cover (%) . | . . . . . Naked Turns 42 | . . . . 42 Heaviest Build 29 | 13 29 8 8 8 Greatest Support 40 | 40 40 12 18 22 Greatest Overweight (x) . | . . . . . Average Overweight (x) . | . . . . . Largest Inventory Capacity 15 | 8 15 5 5 5 Average Capacity 6 | 7 11 5 5 5 Most Carried 13 | 6 13 3 5 5 Average Carried 4 | 4 7 2 4 3 Final Capacity 8 | 8 5 5 5 5 Final Carried 6 | 6 4 3 5 3 Class Distribution -------------------- 51% | Scavenger-Mutant 37% | Mutant 11% | Scavenger-Sprinter Dominant Class ---------------- Mutant | -10/Materials Scavenger-Mutant | -9/Materials Scavenger-Mutant | -9/Mines Scavenger-Sprinter | -8/Materials Resources | -11 -10 -9 -9 -8 ----------- Run | Yrd Mat Mat Min Mat Matter Collected 521 | 211 209 . 101 . Remotely . | . . . . . Salvage Created 158 | . 120 . 38 . Parts 18 | . 12 . 6 . Haulers Intercepted . | . . . . . Recyclers Shooed . | . . . . . Parts Field Recycled . | . . . . . Retrieved Matter . | . . . . . Parts Self-Destructed . | . . . . . Prevented . | . . . . . Parts Restored . | . . . . . Kills | -11 -10 -9 -9 -8 ------- Run | Yrd Mat Mat Min Mat Combat Hostiles Destroyed 6 | . 3 . 3 . Guns 5 | . 2 . 3 . AOE 1 | . 1 . . . Classes Destroyed 4 | . 3 . 1 . Operator 1 | . 1 . . . Watcher 1 | . 1 . . . Swarmer 3 | . . . 3 . Grunt 3 | . 3 . . . Best Kill Streak 3 | . 3 . 3 . Combat Bots Only 3 | . 1 . 3 . Max Kills in Single Turn 1 | . 1 . 1 . Gunslinging . | . . . . . Exploded 1 | . 1 . . . Melee . | . . . . . Uniques/NPCs Destroyed . | . . . . . Combat | -11 -10 -9 -9 -8 -------- Run | Yrd Mat Mat Min Mat Hostile Shots Fired 202 | . 23 4 10 165 Missed 84 | . 4 3 2 75 Hits 118 | . 19 1 8 90 Projectile 118 | . 19 1 8 90 Critical Strikes 3 | . 1 . . 2 Damage Taken 1231 | . 247 17 89 878 Core 617 | . 43 . 19 555 Absorbed by Shields . | . . . . . Regen/Repaired (Parts) 21 | . . 21 . . Core Remaining (%) 92 | 100 82 . 95 . Volleys Fired 31 | . 20 . 11 . Largest 2 | . 2 . 1 . Hottest 50 | . 50 . 20 . Shots Fired 37 | . 26 . 11 . Gun 31 | . 20 . 11 . Cannon . | . . . . . Launcher 6 | . 6 . . . Special . | . . . . . Kinetic 31 | . 20 . 11 . Thermal . | . . . . . Explosive 6 | . 6 . . . Electromagnetic . | . . . . . Robot Hit Streak 8 | . 8 . 2 . Robot Miss Streak 3 | . 3 . 1 . Penetration Max . | . . . . . Secondary Targets . | . . . . . Shots Hit Robots 24 | . 17 . 7 . Core Hits 15 | . 11 . 4 . Critical Kills . | . . . . . Critical Parts Destroyed . | . . . . . Critical Strikes . | . . . . . Melee Attacks . | . . . . . Impact . | . . . . . Slashing . | . . . . . Piercing . | . . . . . Sneak Attacks . | . . . . . Combat Hostiles . | . . . . . Follow-up Attacks . | . . . . . Damage Inflicted 479 | . 422 . 57 . Guns 160 | . 103 . 57 . Cannons . | . . . . . Explosions 319 | . 319 . . . Melee . | . . . . . Ramming . | . . . . . Kinetic 160 | . 103 . 57 . Thermal . | . . . . . Explosive 319 | . 319 . . . Electromagnetic . | . . . . . Impact . | . . . . . Slashing . | . . . . . Piercing . | . . . . . Highest Corruption . | . . . . . Average Corruption . | . . . . . Corruption Purged . | . . . . . Corruption Blocked . | . . . . . Overload Shots . | . . . . . Overflow Damage . | . . . . . Projectiles . | . . . . . Explosions . | . . . . . Melee . | . . . . . Knockbacks . | . . . . . Impact . | . . . . . Kinetic . | . . . . . Secondary . | . . . . . Self-Inflicted Damage 12 | . 12 . . . Shots 1 | . 1 . . . Rammed . | . . . . . Targets Rammed . | . . . . . Kicked . | . . . . . Crushed . | . . . . . Highest Temperature 69 | . 69 . . 22 Average Temperature 18 | . 21 . . 11 Received Heat Transfer 297 | . 153 . 9 135 Siege Activations . | . . . . . Martial Activations . | . . . . . Shielding Activations . | . . . . . Robots Disrupted . | . . . . . Combat Hostiles . | . . . . . Robots Corrupted . | . . . . . Combat Hostiles . | . . . . . Parts Fried . | . . . . . Impact Corruptions . | . . . . . Robots Melted . | . . . . . Combat Hostiles . | . . . . . Parts Melted . | . . . . . Heat Transferred . | . . . . . Parts Sabotaged . | . . . . . Parts Stolen . | . . . . . Parts Stripped . | . . . . . Power Chain Reactions . | . . . . . Alert | -11 -10 -9 -9 -8 ------- Run | Yrd Mat Mat Min Mat Maximum Alert Level . | . . . . . Low Security (%) 100 | 100 100 100 100 100 Level 1 . | . . . . . Level 2 . | . . . . . Level 3 . | . . . . . Level 4 . | . . . . . Level 5 . | . . . . . High Security . | . . . . . Max Security . | . . . . . Peak Influence 89 | . 89 66 70 89 Initial 31 | . . 31 25 1 Average 31 | . 42 32 28 40 Influence Increases 572 | . 144 65 85 278 Destroy 0b10 Robot/C 160 | . 60 . 60 40 Destroy 0b10 Robot/NC 10 | . 10 . . . Destroy Leader 52 | . 22 . 10 20 Allied During Kill 2 | . . . . 2 Successful Hack 26 | . . 5 . 21 Disable Machine 15 | . 15 . . . Destroy Structure 22 | . 22 . . . Partial Spotted 105 | . . 60 15 30 Lose Combat Pursuer 180 | . 15 . . 165 Influence Decreases 483 | . 70 73 146 194 Entered New Map 88 | . . 43 41 4 Time Decay 285 | . 70 30 105 80 Lost Part 90 | . . . . 90 Lost Ally 20 | . . . . 20 Squads Dispatched 5 | . 2 . 1 2 Investigation 3 | . 1 . 1 1 Extermination . | . . . . . Reinforcement 2 | . 1 . . 1 Assault . | . . . . . Garrison . | . . . . . Intercept . | . . . . . Searches Triggered . | . . . . . Construction Impeded . | . . . . . Haulers Reinforced . | . . . . . Active Scanning Responses . | . . . . . Cargo Convoy Interrupts . | . . . . . Stealth | -11 -10 -9 -9 -8 --------- Run | Yrd Mat Mat Min Mat Distress Signals . | . . . . . Communications Jammed . | . . . . . Distress Signals . | . . . . . Times Spotted 49 | . 7 5 5 32 Peak Tracking Total 19 | . 3 5 2 19 Tactical Retreats 6 | . 1 . . 5 Traps | -11 -10 -9 -9 -8 ------- Run | Yrd Mat Mat Min Mat Traps Triggered 1 | . . . . 1 Indirectly . | . . . . . Trap Hack Attempts . | . . . . . Triggered . | . . . . . Disarmed . | . . . . . Reprogrammed . | . . . . . Reused . | . . . . . Traps Extracted . | . . . . . Installed . | . . . . . Triggered . | . . . . . Machines | -11 -10 -9 -9 -8 ---------- Run | Yrd Mat Mat Min Mat Machines Disabled 1 | . 1 . . . Max in Single Turn 1 | . 1 . . . Machines Repaired . | . . . . . Machines Dismantled . | . . . . . Machines Sabotaged . | . . . . . Overloaded Fab Kills . | . . . . . Hacking | -11 -10 -9 -9 -8 --------- Run | Yrd Mat Mat Min Mat Machines Accessed 8 | . 1 1 1 5 Terminals 6 | . 1 . . 5 Fabricators . | . . . . . Repair Stations 1 | . . 1 . . Recycling Units . | . . . . . Scanalyzers . | . . . . . Garrison Access . | . . . . . Total Hacks 20 | . 3 3 1 13 Successful 11 | . 1 2 1 7 Failed 9 | . 2 1 . 6 Catastrophic 4 | . . 1 . 3 Database Lockouts . | . . . . . Manual . | . . . . . Terminals 16 | . 3 . . 13 Fabricators . | . . . . . Repair Stations 3 | . . 3 . . Recycling Units . | . . . . . Scanalyzers . | . . . . . Garrison Access . | . . . . . Terminal Hacks 9 | . 1 . 1 7 Record 3 | . . . . 3 Open Door 1 | . . . 1 . Terminal Index 1 | . . . . 1 Locate Traps 2 | . 1 . . 1 Recall Investigation 1 | . . . . 1 Hauler Manifests 1 | . . . . 1 Fabricator Hacks . | . . . . . Repair Station Hacks 2 | . . 2 . . Scan Component 1 | . . 1 . . Repair 1 | . . 1 . . Recycling Unit Hacks . | . . . . . Scanalyzer . | . . . . . Garrison Access Hacks . | . . . . . Unauthorized Hacks . | . . . . . Terminals . | . . . . . Fabricators . | . . . . . Repair Stations . | . . . . . Recycling Units . | . . . . . Scanalyzers . | . . . . . Garrison Access . | . . . . . Data Cores Recovered . | . . . . . Used . | . . . . . Hacking Detections 6 | . 1 1 . 4 Full Trace Events 2 | . 1 . . 1 Feedback Events . | . . . . . Feedback Blocked . | . . . . . Robot Schematics Acquired . | . . . . . Robots Built . | . . . . . Authchips . | . . . . . Time . | . . . . . Total Robot Build Rating . | . . . . . Part Schematics Acquired . | . . . . . Parts Built . | . . . . . Authchips . | . . . . . Time . | . . . . . Total Part Build Rating . | . . . . . Part Studies Acquired . | . . . . . Parts Repaired 1 | . . 1 . . Time 26 | . . 26 . . Parts Recycled . | . . . . . Recycled Matter . | . . . . . Retrieved Matter . | . . . . . Retrieved Components . | . . . . . Parts Scanalyzed . | . . . . . Part Schematics Acquired . | . . . . . Parts Damaged . | . . . . . Bothacking | -11 -10 -9 -9 -8 ------------ Run | Yrd Mat Mat Min Mat Used RIF Installer . | . . . . . Robots Hacked . | . . . . . Non-combat . | . . . . . Combat . | . . . . . Robot Hacks Applied . | . . . . . Relay Couplers Released . | . . . . . Fabnet Peak Effective % . | . . . . . Robots Rewired . | . . . . . Allies Hacked . | . . . . . Hacks Repelled . | . . . . . Allies | -11 -10 -9 -9 -8 -------- Run | Yrd Mat Mat Min Mat Total Allies 1 | . . . 1 . Largest Group 1 | . . . 1 1 Highest-Rated Group 31 | . . . 31 31 Highest-Rated Ally 31 | . . . 31 31 Total Orders . | . . . . . Ally Attacks 3 | . . . . 3 Total Damage 64 | . . . . 64 Kills 2 | . . . . 2 Allies Corrupted . | . . . . . Allies Melted . | . . . . . Intel | -11 -10 -9 -9 -8 ------- Run | Yrd Mat Mat Min Mat Active Infowar (turns) 472 | . 47 65 231 129 Optics 472 | . 47 65 231 129 Robot Analysis Total . | . . . . . Derelict Logs Recovered 1 | . . . 1 . Drone Launches . | . . . . . Drone Recoveries . | . . . . . Exploration | -11 -10 -9 -9 -8 ------------- Run | Yrd Mat Mat Min Mat Turns Passed 744 | 87 190 65 231 171 Spaces Moved 1236 | 60 115 96 517 448 Core 108 | 23 . . . 85 Treads 90 | 37 53 . . . Legs . | . . . . . Wheels . | . . . . . Hover 44 | . 44 . . . Flight 994 | . 18 96 517 363 Fastest Speed 31 | 50 37 34 34 31 Average Speed 45 | 117 100 34 34 35 Slowest Speed 160 | 160 160 34 34 50 Overloaded Moves . | . . . . . Propulsion Burnouts . | . . . . . Robots Hopped 10 | . . 1 2 7 Potential Cave-ins . | . . . . . Cave-ins Triggered . | . . . . . Exploration Rate (%) 36 | 3 21 11 76 73 Regions Visited 4 Branch Regions 1 Pre-discovered Areas . | . . . . . Known Exits Taken . | . . . . . Unknown Exits Taken 4 | 1 1 1 1 . Scrap Searched 1 | . . . 1 . Spaces Dug . | . . . . . Terrain Destroyed 24 | . 24 . . . Melee . | . . . . . Projectile . | . . . . . AOE 24 | . 24 . . . Terrain Rammed . | . . . . . Walls Destroyed . | . . . . . Machines Disabled . | . . . . . Actions | -11 -10 -9 -9 -8 --------- Run | Yrd Mat Mat Min Mat Total 1384 | 75 172 127 560 450 Wait 55 | . 1 26 23 5 Move 1213 | 59 114 93 512 435 Hop 9 | . . 1 2 6 Pick Up 30 | 10 13 2 4 1 Fast Attach 4 | 2 1 . 1 . Attach 15 | 4 5 4 . 2 Detach 1 | . . 1 . . Swap 7 | . 2 . 4 1 Drop 19 | . 16 . 3 . Fire 31 | . 20 . 11 . Melee . | . . . . . Ram . | . . . . . Kick . | . . . . . Crush . | . . . . . Escape Stasis . | . . . . . Rewire . | . . . . . Trap . | . . . . . Miscellaneous . | . . . . . Route ------- -11/Scrapyard -10/Materials -9/Materials -9/Mines (discovered 2 exits: *Mat x2) -8/Materials (discovered 2 exits: [*Fac] / [*Sto]) History --------- Turn | Location | Event 5 | -11/Scrapyard | Discovered new exit (range 15) 88 | -11/Scrapyard | Entered Materials 260 | -10/Materials | Discovered new exit (range 16) 278 | -10/Materials | Entered another Materials area 278 | -9/Materials | Evolved 2 slots: Power x1, Propulsion x1 313 | -9/Materials | Repaired Lgt. Assault Rifle 324 | -9/Materials | Discovered new exit (range 18) 343 | -9/Materials | Entered Mines 450 | -9/Mines | Found a damaged Exp. Sensor Array with a note attached 451 | -9/Mines | Found Prototype Device 466 | -9/Mines | Learned 2 Materials zone layouts 467 | -9/Mines | Met a Derelict shopkeep closing up shop 529 | -9/Mines | Build established: Scavenger-Mutant 532 | -9/Mines | Discovered new exit (range 5) 539 | -9/Mines | Discovered new exit (range 10) 542 | -9/Mines | Received a Mining Laser from a helpful Derelict 574 | -9/Mines | Entered Materials 574 | -8/Materials | Accompanied by 1 ally 574 | -8/Materials | Evolved 2 slots: Propulsion x1, Utility x1 685 | -8/Materials | Discovered new exit (range 4) 713 | -8/Materials | Discovered new exit (range 16) 724 | -8/Materials | Core integrity fell below 50% 733 | -8/Materials | Lost 9 parts (2p5n1u1w) 743 | -8/Materials | Core integrity fell below 20% 745 | -8/Materials | Destroyed by S-10 Pest with Light Assault Rifle Last Messages --------------- Lgt. Assault Rifle destroyed. K-01 Serf collects debris. S-10 Pest destroyed. Flight Unit destroyed. Triggered Blade Trap. Massive razor-sharp blades shoot up from within the floor. Lgt. Assault Rifle severed. Adv. Visual Processing Unit severed. U-05 Engineer lays Concrete. Slug penetrates Wall. EXIT=FOUND K-01 Serf collects debris. S-10 Pest destroyed. K-01 Serf collects debris. Slug penetrates Door. S-10 Pest destroyed. K-01 Serf collects debris. Slug penetrates Wall. U-05 Engineer builds a Wall. Map ----- +----------------------------------------------------+ | ???????????#! # ### #????????????????? | | ???????????# # #?# #????????????????? | | ?????###########""#####+#####?# #????????????????? | | ?????# = #??# #????????????????? | | ?????# < = %= "#?# #????????????????? | | ?????# *%= ####+###??????????????? | | ?????################### " #??????????????? | | ???????????????????????# # % ]#??????????????? | | ???????????????????##### # """ #??????????????? | | ???????????????????#!! / "R #??????????????? | | ???????????????????#!! # """ #??????????????? | | ???????????????????#[[ s # #??????????????? | | ???????????????????#[[ sss# ##############??????? | | ???????????????????#!! ###??# ] #??????? | | ???????????????????#!! #????# ** #??????? | | ???????????????????##### #????# ** #??????? | | ???????????????????????# #????# #??????? | | ???????????????????????# Y#????# #??????? | | ???????????????????????# #????# ] #??????? | | ???????????????????????# #????# #??????? | | ???????????????#######?# #????# #??????? | | ???????????????# # #????#####/############ | | ???????????????# "" # ######### | | ???????????????# G" ; ^ Y =* | | ???????????????# = "" #[ =% | | ???????????????# # @ "" ################ | | ???????????????######### Y" a################ | | ??????????????????????# "" k | | ??????????????????##### | | ??????????????????#!! | | ??????????????????#!! | | ??????????????????#!! g###+####### """ | | ??????????????????#!! ## g #?# ????# """ ] | | ??????????????????#== ?#gg #?# ??# """ | | ??????????????????#== ?# #?# ## """ | | ??????????????????###??# #?# ## """ | | ???????????????????????# #?# ## | | ???????????????????????# #?# ## ### | | ???????????????????????# #?######### """ !#?# | | ???????????????????????# #?????????# """ #?# | | #?????????"" #??????# #?????????# """ #?# | | ########??"" ######## ########### """ ### | | / ] #??"" # + """ # | | #??"" # # + | | #??"" / + # | | """ ????" # # ##########+####### # | | ""????????" # # # ??? ??????# # | | " ????????" # # # ? ?????###/# | | ##?###???? ######## # # """?????# | | ####T########+########## # # "???????# | +----------------------------------------------------+ Best States ------------- Heat Dissipation 38 Energy Generation 15 Energy Capacity 275 Matter Stores 300 Matter Capacity 300 Sight Range 20 Terrain Scan Density 10 Additional Mass Support 6 Evasion (%) 63 Recoil Reduction 2 Item Schematics ----------------- None Robot Schematics ------------------ None Fabricated ------------ Nothing Repaired ---------- Lgt. Assault Rifle | 73% | -9/Materials Studied --------- None Alien Tech Used ----------------- None Achievements -------------- Shopping List Spot Them First Challenges ------------ None Game ------ Seed ConceptGlidesysNanovents Manual? 0 Play Time 00:18:24 Cumulative 3.0 hours Start 2026.08.29 @ 16:38:55 End 2026.08.29 @ 16:55:07 Sessions 1 Manual Loads 0 Difficulty Rogue Special Mode None Game No. 5 Rogue 5 Adventurer 0 Explorer 0 Win Type - Total 0 Types 0/0/0/0/0/0/0/0/0/0 Lore% 10 Gallery% 6 Achievement% 8 Wizard Run 0 Options --------- Layout 1 ASCII 0 Keyboard 0 Movement Numpad Keybinds 0 Fullscreen 2 Font 24/X11 Map View 50x35 Zoom Use 0% Tactical HUD 0 Map Filters NONE Filters NONE Steam 1 RUN: 81cde24a-0121-4fd4-8307-da357acc5cc5